Cogmind - Beta 13 @@@ ROGUE MODE // 2024.04.11 @ 00:53:29 Player: sudpad Result: Destroyed by S-10 Pest with Light Assault Rifle Performance ------------- Evolutions (2) 1000 Regions Visited (3) 600 Robots Destroyed (35) 175 Value Destroyed (975) 975 Prototype IDs (0) 0 Alien Tech Used (0) 0 Bonus (0) 0 TOTAL SCORE: 2750 Bonus ------- None Cogmind --------- Core Integrity 0/550 Matter 226/300 Energy 63/100 System Corruption 1% Temperature Cool (1) Movement Treading (160) Location -8/Materials Parts ------- > --- POWER (3) -------- (None) > --- PROPULSION (4) --- Light Treads Wheel Wheel > --- UTILITY (2) ------ (None) > --- WEAPON (2) ------- Beam Rifle > --- INVENTORY (5) ---- Tractor Beam Concussive RPG (1) Improved Datajack Peak State ------------ > --- POWER ------------ Light Ion Engine Light Ion Engine Light Ion Engine > --- PROPULSION ------- Light Treads Improved Treads Armored Treads > --- UTILITY ---------- Heat Sink Improved Medium Armor Plating > --- WEAPON ----------- Beam Rifle Improved Datajack > --- INVENTORY -------- Heat Sink Signal Interpreter Light Armor Plating Tractor Beam Light Assault Rifle [Rating: 19] Favorites ----------- Power Light Ion Engine Engine Light Ion Engine Propulsion Light Treads Treads Light Treads Leg Aluminum Leg Wheel Wheel Utility Heat Sink Device Heat Sink Processor Signal Interpreter Protection Light Armor Plating Weapon Beam Rifle Energy Gun Beam Rifle Energy Cannon Beam Cannon Ballistic Gun Light Assault Rifle Launcher Missile Launcher Special Melee Weapon Improved Datajack Build | -11 -10 -9 -8 ------- Run | Yrd Mat Mat Mat Slots Evolved 4 | . . 2 2 Power 2 | . . 2 . Propulsion 2 | . . . 2 Utility . | . . . . Weapon . | . . . . Parts Attached 40 | 4 1 15 20 Power 7 | 1 1 5 . Engine 7 | 1 1 5 . Core . | . . . . Reactor . | . . . . Propulsion 13 | 2 . 3 8 Treads 8 | 2 . 3 3 Leg 3 | . . . 3 Wheel 2 | . . . 2 Hover . | . . . . Flight . | . . . . Utility 8 | . . 3 5 Device 4 | . . 1 3 Storage . | . . . . Processor 1 | . . . 1 Hackware . | . . . . Protection 3 | . . 2 1 Artifact . | . . . . Weapon 12 | 1 . 4 7 Energy Gun 6 | . . 3 3 Energy Cannon 1 | . . 1 . Ballistic Gun 2 | 1 . . 1 Ballistic Cannon . | . . . . Launcher 2 | . . . 2 Special Weapon . | . . . . Impact Weapon . | . . . . Slashing Weapon . | . . . . Piercing Weapon . | . . . . Special Melee Weapon 1 | . . . 1 Unidentified Prototypes . | . . . . Parts Lost 17 | . . 1 16 Power 3 | . . . 3 Propulsion 6 | . . 1 5 Utility 4 | . . . 4 Weapon 4 | . . . 4 Highest Loss Streak 6 | . . 1 6 To Critical Strikes . | . . . . Average Slot Usage (%) 72 | . 57 79 64 Engine 19 | . 14 23 14 Treads 21 | . 28 21 17 Device 7 | . . 8 7 Protection 6 | . . 8 5 Energy Gun 11 | . . 15 8 Ballistic Gun 3 | . 14 1 . Special Melee Weapon 1 | . . . 5 Naked Turns 27 | . . . 27 Heaviest Build 25 | 4 6 25 21 Greatest Support 63 | 40 40 43 63 Greatest Overweight (x) 1 | . . . 1 Average Overweight (x) . | . . . . Largest Inventory Capacity 5 | 5 5 5 5 Average Capacity 5 | 5 5 5 5 Most Carried 5 | 4 2 5 5 Average Carried 2 | . 1 3 3 Final Capacity 5 | 5 5 5 5 Final Carried 4 | . 2 4 3 Class Distribution -------------------- 50% | Scavenger-Mutant 49% | Mutant Dominant Class ---------------- Mutant | -10/Materials Scavenger-Mutant | -9/Materials Scavenger-Mutant | -8/Materials Resources | -11 -10 -9 -8 ----------- Run | Yrd Mat Mat Mat Matter Collected 599 | 184 82 161 172 Remotely 30 | . . . 30 Salvage Created 1119 | . 90 607 422 Parts 86 | . 4 44 38 Haulers Intercepted . | . . . . Recyclers Shooed . | . . . . Parts Field Recycled . | . . . . Retrieved Matter . | . . . . Parts Self-Destructed . | . . . . Prevented . | . . . . Kills | -11 -10 -9 -8 ------- Run | Yrd Mat Mat Mat Combat Hostiles Destroyed 24 | . 2 12 10 Melee 2 | . . . 2 Guns 16 | . 2 9 5 Cannons 1 | . . 1 . AOE 2 | . . . 2 Classes Destroyed 8 | . 1 5 2 Worker 3 | . . 2 1 Builder 5 | . . 1 4 Watcher 3 | . . 3 . Swarmer 2 | . . 2 . Cutter 3 | . . . 3 Grunt 12 | . 2 7 3 Sentry 6 | . . 3 3 Hunter 1 | . . . 1 Best Kill Streak 9 | . 2 4 9 Combat Bots Only 3 | . 2 2 3 Max Kills in Single Turn 4 | . 1 1 4 Gunslinging . | . . . . Exploded 1 | . . . 1 Melee 1 | . . . 1 Uniques/NPCs Destroyed . | . . . . Combat | -11 -10 -9 -8 -------- Run | Yrd Mat Mat Mat Hostile Shots Fired 213 | . 27 68 118 Missed 61 | . 7 22 32 Damage Taken 2780 | . 254 597 1929 Core 706 | . 43 112 551 Absorbed by Shields . | . . . . Core Remaining (%) 84 | 100 82 72 . Volleys Fired 143 | . 18 61 64 Largest 2 | . 1 2 2 Hottest 112 | . 20 112 101 Shots Fired 173 | . 18 89 66 Gun 157 | . 18 79 60 Cannon 10 | . . 10 . Launcher 6 | . . . 6 Special . | . . . . Kinetic 60 | . 18 14 28 Thermal 107 | . . 75 32 Explosive 6 | . . . 6 Electromagnetic . | . . . . Robot Hit Streak 10 | . 4 9 10 Robot Miss Streak 5 | . 3 5 2 Penetration Max . | . . . . Secondary Targets . | . . . . Shots Hit Robots 114 | . 10 50 54 Core Hits 73 | . 8 25 40 Critical Kills 1 | . . 1 . Critical Parts Destroyed . | . . . . Critical Strikes 9 | . . 6 3 Burn 8 | . . 5 3 Meltdown 1 | . . 1 . Melee Attacks 2 | . . . 2 Impact . | . . . . Slashing . | . . . . Piercing . | . . . . Sneak Attacks . | . . . . Combat Hostiles . | . . . . Follow-up Attacks . | . . . . Damage Inflicted 2121 | . 99 724 1298 Guns 1268 | . 99 638 531 Cannons 86 | . . 86 . Explosions 680 | . . . 680 Melee . | . . . . Ramming 87 | . . . 87 Kinetic 327 | . 99 44 184 Thermal 1046 | . . 680 366 Explosive 516 | . . . 516 Electromagnetic 145 | . . . 145 Impact . | . . . . Slashing . | . . . . Piercing . | . . . . Highest Corruption 1 | . . . 1 Average Corruption 1 | . . . 1 Corruption Purged . | . . . . Corruption Blocked . | . . . . Effects 3 | . . . 3 Matter Fused 1 | . . . 1 Energy Discharges 1 | . . . 1 Alerts 1 | . . . 1 Overload Shots . | . . . . Overflow Damage 30 | . . . 30 Projectiles . | . . . . Explosions 30 | . . . 30 Melee . | . . . . Knockbacks 2 | . . . 2 Impact 2 | . . . 2 Kinetic . | . . . . Secondary . | . . . . Self-Inflicted Damage 130 | . . . 130 Shots 2 | . . . 2 Rammed 22 | . . . 22 Targets Rammed 23 | . . . 23 Kicked 1 | . . . 1 Crushed . | . . . . Highest Temperature 453 | . 15 453 108 Average Temperature 96 | . 6 120 36 Received Heat Transfer 918 | . 147 213 558 Effects 3 | . . 3 . Shutdowns 2 | . . 2 . Energy Bleed 1 | . . 1 . Siege Activations . | . . . . Robots Corrupted . | . . . . Combat Hostiles . | . . . . Parts Fried . | . . . . Impact Corruptions . | . . . . Robots Melted 3 | . . 2 1 Combat Hostiles 3 | . . 2 1 Parts Melted 10 | . . 5 5 Heat Transferred 3282 | . . 2072 1210 Parts Sabotaged . | . . . . Parts Stolen . | . . . . Parts Stripped . | . . . . Power Chain Reactions 1 | . . . 1 Alert | -11 -10 -9 -8 ------- Run | Yrd Mat Mat Mat Peak Influence 205 | . 50 205 176 Initial 86 | . . 20 86 Average 58 | . 37 63 113 Maximum Alert Level 1 | . . 1 . Low Security (%) 97 | 100 100 94 100 Level 1 2 | . . 5 . Level 2 . | . . . . Level 3 . | . . . . Level 4 . | . . . . Level 5 . | . . . . High Security . | . . . . Max Security . | . . . . Squads Dispatched 5 | . 1 2 2 Investigation 1 | . 1 . . Extermination . | . . . . Reinforcement 4 | . . 2 2 Assault . | . . . . Garrison . | . . . . Intercept . | . . . . Searches Triggered . | . . . . Construction Impeded . | . . . . Haulers Reinforced . | . . . . Active Scanning Responses . | . . . . Cargo Convoy Interrupts . | . . . . Stealth | -11 -10 -9 -8 --------- Run | Yrd Mat Mat Mat Distress Signals 2 | . . 2 . Communications Jammed . | . . . . Distress Signals . | . . . . Times Spotted 43 | . 3 27 13 Peak Tracking Total 6 | . 2 6 5 Tactical Retreats 1 | . . . 1 Traps | -11 -10 -9 -8 ------- Run | Yrd Mat Mat Mat Traps Triggered 4 | . 1 3 . Indirectly . | . . . . Trap Hack Attempts . | . . . . Triggered . | . . . . Disarmed . | . . . . Reprogrammed . | . . . . Reused . | . . . . Traps Extracted . | . . . . Installed . | . . . . Triggered . | . . . . Machines | -11 -10 -9 -8 ---------- Run | Yrd Mat Mat Mat Machines Disabled 3 | . . 2 1 Max in Single Turn 1 | . . 1 1 Machines Repaired . | . . . . Machines Dismantled . | . . . . Machines Sabotaged . | . . . . Overloaded Fab Kills . | . . . . Hacking | -11 -10 -9 -8 --------- Run | Yrd Mat Mat Mat Machines Accessed 1 | . . 1 . Terminals 1 | . . 1 . Fabricators . | . . . . Repair Stations . | . . . . Recycling Units . | . . . . Scanalyzers . | . . . . Garrison Access . | . . . . Total Hacks 1 | . . 1 . Successful . | . . . . Failed 1 | . . 1 . Catastrophic . | . . . . Database Lockouts . | . . . . Manual . | . . . . Terminals 1 | . . 1 . Fabricators . | . . . . Repair Stations . | . . . . Recycling Units . | . . . . Scanalyzers . | . . . . Garrison Access . | . . . . Terminal Hacks . | . . . . Fabricator Hacks . | . . . . Repair Station Hacks . | . . . . Recycling Unit Hacks . | . . . . Scanalyzer . | . . . . Garrison Access Hacks . | . . . . Unauthorized Hacks . | . . . . Terminals . | . . . . Fabricators . | . . . . Repair Stations . | . . . . Recycling Units . | . . . . Scanalyzers . | . . . . Garrison Access . | . . . . Data Cores Recovered . | . . . . Used . | . . . . Hacking Detections 1 | . . 1 . Full Trace Events . | . . . . Feedback Events . | . . . . Feedback Blocked . | . . . . Robot Schematics Acquired . | . . . . Robots Built . | . . . . Authchips . | . . . . Time . | . . . . Total Robot Build Rating . | . . . . Part Schematics Acquired . | . . . . Parts Built . | . . . . Authchips . | . . . . Time . | . . . . Total Part Build Rating . | . . . . Parts Repaired . | . . . . Time . | . . . . Parts Recycled . | . . . . Recycled Matter . | . . . . Retrieved Matter . | . . . . Retrieved Components . | . . . . Parts Scanalyzed . | . . . . Part Schematics Acquired . | . . . . Parts Damaged . | . . . . Bothacking | -11 -10 -9 -8 ------------ Run | Yrd Mat Mat Mat Used RIF Installer . | . . . . Robots Hacked 1 | . . . 1 Non-combat . | . . . . Combat 1 | . . . 1 Robot Hacks Applied 1 | . . . 1 parse_system 1 | . . . 1 Relay Couplers Released . | . . . . Fabnet Peak Effective % . | . . . . Robots Rewired . | . . . . Allies Hacked . | . . . . Hacks Repelled . | . . . . Allies | -11 -10 -9 -8 -------- Run | Yrd Mat Mat Mat Total Allies . | . . . . Largest Group . | . . . . Highest-Rated Group . | . . . . Highest-Rated Ally . | . . . . Total Orders . | . . . . Ally Attacks . | . . . . Total Damage . | . . . . Kills . | . . . . Allies Corrupted . | . . . . Allies Melted . | . . . . Intel | -11 -10 -9 -8 ------- Run | Yrd Mat Mat Mat Robot Analysis Total . | . . . . Derelict Logs Recovered . | . . . . Drone Launches . | . . . . Drone Recoveries . | . . . . Exploration | -11 -10 -9 -8 ------------- Run | Yrd Mat Mat Mat Turns Passed 2433 | 569 246 1029 589 Spaces Moved 1094 | 192 131 505 266 Core 98 | 61 . . 37 Treads 973 | 131 131 505 206 Legs 18 | . . . 18 Wheels 5 | . . . 5 Hover . | . . . . Flight . | . . . . Fastest Speed 50 | 50 160 160 50 Average Speed 149 | 125 160 160 142 Slowest Speed 165 | 160 160 160 165 Overloaded Moves . | . . . . Propulsion Burnouts . | . . . . Robots Hopped . | . . . . Cave-ins Triggered . | . . . . Exploration Rate (%) 25 | 13 21 43 23 Regions Visited 3 Branch Regions . Pre-discovered Areas . | . . . . Known Exits Taken . | . . . . Unknown Exits Taken 3 | 1 1 1 . Scrap Searched . | . . . . Spaces Dug . | . . . . Terrain Destroyed 55 | . . . 55 Melee . | . . . . Projectile . | . . . . AOE 55 | . . . 55 Terrain Rammed . | . . . . Walls Destroyed . | . . . . Machines Disabled . | . . . . Actions | -11 -10 -9 -8 --------- Run | Yrd Mat Mat Mat Total 1731 | 521 153 640 417 Wait 376 | 322 . 37 17 Move 1091 | 191 130 504 266 Hop . | . . . . Pick Up 40 | 4 3 17 16 Fast Attach . | . . . . Attach 31 | 4 . 10 17 Detach 4 | . . . 4 Swap 9 | . 1 5 3 Drop 12 | . 1 6 5 Fire 143 | . 18 61 64 Melee 2 | . . . 2 Ram 22 | . . . 22 Kick 1 | . . . 1 Crush . | . . . . Escape Stasis . | . . . . Rewire . | . . . . Trap . | . . . . Miscellaneous . | . . . . Route ------- -11/Scrapyard -10/Materials -9/Materials -8/Materials History --------- Turn | Location | Event 17 | -11/Scrapyard | Discovered new exit (range 16) 570 | -11/Scrapyard | Entered Materials 571 | -10/Materials | Build established: Mutant 789 | -10/Materials | Discovered new exit (range 15) 816 | -10/Materials | Entered another Materials area 816 | -9/Materials | Evolved 2 slots: Power x2 1375 | -9/Materials | Build established: Scavenger-Mutant 1814 | -9/Materials | Discovered new exit (range 16) 1845 | -9/Materials | Entered another Materials area 1845 | -8/Materials | Evolved 2 slots: Propulsion x2 2228 | -8/Materials | Lost 6 parts (3p1n1u1w) 2251 | -8/Materials | Core integrity fell below 50% 2271 | -8/Materials | Core integrity fell below 20% 2279 | -8/Materials | Lost 4 parts (2n1u1w) 2389 | -8/Materials | Lost 6 parts (2n2u2w) 2434 | -8/Materials | Destroyed by S-10 Pest with Light Assault Rifle Last Messages --------------- U-05 Engineer lays Concrete. Acquired Wheel. U-05 Engineer lays Concrete. U-05 Engineer builds a Wall. Acquired Lgt. Treads. U-05 Engineer lays Concrete. The unstable cave ceiling collapses. U-05 Engineer lays Concrete. Acquired 45 matter. U-05 Engineer lays Concrete. Acquired Corrupted Aluminum Leg. U-05 Engineer lays Concrete. Acquired Aluminum Leg. Dropped Corrupted Aluminum Leg. Dropped Aluminum Leg. Acquired Wheel. Dropped Lgt. Treads. Acquired Lgt. Treads. System corrupted: Energy discharge (-35). [Achievement: First Step to Greatness] Map ----- +----------------------------------------------------+ | ?????????????????????????????????????????????????? | | ?????????????????????????????????????????????????? | | ?????????????????????????????????????????????????? | | ???????????????????????????????????????###???????? | | ???????????????????????????????????##### ##??????? | | ???????????????????????????????????# % ###??????? | | ?????????????????????????????????### # ! #??????? | | ?????????????????????????????????# # = = #??????? | | ?????????????????????????????????# ###????? | | ?????????????????????#####??????## [ #????? | | ????????????????????? ??????# % ##????? | | ?????????????????????? ??????## ##???? | | ?????????????????????? ???????# ! # #???? | | ??????????????????????#a ???????# =! ##???? | | ??????????????????????# #??????######+# #???? | | ??????????????????????# #????????# !== %#???? | | ??????????????????????# #????????# ##### %%###?? | | ??????????????????????# #????????# ############# | | ??????????????????????# #????????# #?#!=! %% # | | ?????????????????????## ##?????### ###=%[%*% # | | ?????????????????????# ####### #*""""%%% # | | ?????????????????????# # """"""% # | | ?????????????????????# +%""""""" # | | ?????????????????????# # """"""" # | | ?????????????????????# ####### # %"""""" # | | ?????????????????????####@##?????####### % # | | ????????????????????????# #????????????##/##"##### | | ????????????????????????# #?????????????# ####???? | | ????????????????????????# #?????????????# #??????? | | ????????????????????????# #?????????????# #??????? | | ????????????????????????# #?????????????# #??????? | | ????????????????????????# #?????#######?# #??????? | | ????????????????????????# #?????# ## #??????? | | ????????????????????????# #?????# """ + #??????? | | ????????????????????????# #?????#! """ ## #?###### | | ????????????????????????? ??????# """ ?# #?# | | ????????????????????????? ??????# ??# #?# [ " | | ????????????????????????? ??????# ??# #?# "" | | ????????????????????????? ????######+#### ### "" | | ????????????????????????? ????# =%^ # " | | ?????????????????????????s????# + " | | ????????????????????????? ????# # | | ??????????????????????????????# ##+###### # "" | | ????????????????????????# ##### # ! ## # " | | ????????????????????????+ # ## # " | | ??????????????????????????????# + """ ## # | | ?????????????????????########## # """ ## #####% | | ?????????????????????# # # """ + #???## | | ?????????????????????#""" # # ####????? | | ?????????????????????#""" # ########???????? | +----------------------------------------------------+ Best States ------------- Heat Dissipation 41 Energy Generation 20 Energy Capacity 550 Matter Stores 300 Matter Capacity 300 Sight Range 16 Terrain Scan Density 10 Armor Coverage 225 Evasion (%) 50 Recoil Reduction 3 Item Schematics ----------------- None Robot Schematics ------------------ None Fabricated ------------ Nothing Alien Tech Used ----------------- None Achievements -------------- Crack Shot First Step to Greatness It's Just You Let's See Who's Tougher Storm Trooper Uninvited Guest Challenges ------------ None Game ------ Seed CatalystCargoNanosword Manual? 0 Play Time 00:38:00 Cumulative 1.3 hours Start 2024.04.10 @ 22:52:11 End 2024.04.11 @ 00:53:29 Sessions 1 Manual Loads 0 Difficulty Rogue Special Mode None Game No. 2 Rogue 2 Adventurer 0 Explorer 0 Win Type - Total 0 Types 0/0/0/0/0/0/0/0/0 Lore% 1 Gallery% 3 Achievement% 5 Wizard Run 0 Options --------- Layout 1 ASCII 0 Keyboard 0 Movement Arrows Keybinds 0 Fullscreen 1 Font 24/Smallcaps Map View 50x35 Zoom Use 0% Tactical HUD 0 Map Filters NONE Filters NONE Steam 1 RUN: 9dd0c11d-29d6-4e7a-8510-8f1412229c3f